{"text_format":"3","workbook":"xlsx","n_sheets":4,"sheets":["Visão Geral do Orçamento","Resumo do Orçamento","Despesas Mensais","Dados adicionais"],"not_rendered":{"charts":1,"images":4,"defined_names":7,"pivot_tables":2},"read":"whole","date_system":"1900"}

{"sheet":"Visão Geral do Orçamento","index":0,"n_rows":12,"n_cols":8,"rows_kept":12,"merged":[[2,1,2,2],[3,1,3,2],[4,1,4,2]]}
[{"$nulls":7}," "]
[null,"Saldo"]
[null,"Saldo Previsto",null,{"$f":"Receita_Projetada-Despesas_Projetadas","v":{"v":1585,"d":"R$ 1,585"}},null,"Projetado menos as despesas"]
[null,"Saldo Real ",null,{"$f":"Receita_Real-Despesas_Reais","v":{"v":1740,"d":"R$ 1,740"}},null,"Real menos as despesas"]
[null,"Diferença",null,{"$f":"D4-D3","v":{"v":155,"d":"R$ 155"}},null,"Real menos o projetado"]
[null,"Receita",{"$nulls":3},"Despesas"]
[null,null,"Projetado","Real",null,"Projetado","Real"]
[null,"Receita 1",{"v":6000,"d":"R$ 6,000"},{"v":5800,"d":"R$ 5,800"},null,{"$f":"SUM(Tabela_Despesas_Mensais[Custo previsto])","v":{"v":7915,"d":"R$ 7,915"}},{"$f":"SUM(Tabela_Despesas_Mensais[Custo Real])","v":{"v":7860,"d":"R$ 7,860"}}]
[null,"Receita 2",{"v":1000,"d":"R$ 1,000"},{"v":2300,"d":"R$ 2,300"}]
[null,"Receita extra",{"v":2500,"d":"R$ 2,500"},{"v":1500,"d":"R$ 1,500"}]
[null,"Total de receita",{"$f":"SUM(C8:C10)","v":{"v":9500,"d":"R$ 9,500"}},{"$f":"SUM(D8:D10)","v":{"v":9600,"d":"R$ 9,600"}}]
[null,"Divisão das despesas reais"]

{"sheet":"Resumo do Orçamento","index":1,"n_rows":41,"n_cols":7,"rows_kept":41}
[null,"Resumo do Orçamento",{"$nulls":4}," "]
[]
[null,"Categorias","Custo previsto ","Custo Real ","Diferença "]
[null,"Alimentação",{"v":1100,"d":"R$ 1,100"},{"v":1320,"d":"R$ 1,320"},{"v":-220,"d":"-R$ 220"}]
[null,"Jantar fora",{"v":1000,"d":"R$ 1,000"},{"v":1200,"d":"R$ 1,200"},{"v":-200,"d":"-R$ 200"}]
[null,"Supermercado",{"v":100,"d":"R$ 100"},{"v":120,"d":"R$ 120"},{"v":-20,"d":"-R$ 20"}]
[]
[null,"Animais de estimação",{"v":170,"d":"R$ 170"},{"v":100,"d":"R$ 100"},{"v":70,"d":"R$ 70"}]
[null,"Alimentação",{"v":150,"d":"R$ 150"},{"v":75,"d":"R$ 75"},{"v":75,"d":"R$ 75"}]
[null,"Brinquedos",null,null,{"v":0,"d":"R$ 0"}]
[null,"Dia da Beleza",{"v":20,"d":"R$ 20"},{"v":25,"d":"R$ 25"},{"v":-5,"d":"-R$ 5"}]
[null,"Médico",null,null,{"v":0,"d":"R$ 0"}]
[]
[null,"Cuidados pessoais",{"v":150,"d":"R$ 150"},{"v":140,"d":"R$ 140"},{"v":10,"d":"R$ 10"}]
[]
[null,"Empréstimos",{"v":200,"d":"R$ 200"},{"v":200,"d":"R$ 200"},{"v":0,"d":"R$ 0"}]
[]
[null,"Entretenimento",{"v":400,"d":"R$ 400"},{"v":358,"d":"R$ 358"},{"v":42,"d":"R$ 42"}]
[]
[null,"Filhos",{"v":140,"d":"R$ 140"},{"v":140,"d":"R$ 140"},{"v":0,"d":"R$ 0"}]
[]
[null,"Impostos",{"v":300,"d":"R$ 300"},{"v":300,"d":"R$ 300"},{"v":0,"d":"R$ 0"}]
[]
[null,"Moradia",{"v":2830,"d":"R$ 2,830"},{"v":2702,"d":"R$ 2,702"},{"v":-72,"d":"-R$ 72"}]
[]
[null,"Poupança",{"v":200,"d":"R$ 200"},{"v":200,"d":"R$ 200"},{"v":0,"d":"R$ 0"}]
[]
[null,"Presentes e instituição de caridade",{"v":100,"d":"R$ 100"},{"v":125,"d":"R$ 125"},{"v":-25,"d":"-R$ 25"}]
[]
[null,"Seguro",{"v":900,"d":"R$ 900"},{"v":900,"d":"R$ 900"},{"v":0,"d":"R$ 0"}]
[]
[null,"Transporte",{"v":1425,"d":"R$ 1,425"},{"v":1375,"d":"R$ 1,375"},{"v":50,"d":"R$ 50"}]
[null,"Combustível",{"v":450,"d":"R$ 450"},{"v":400,"d":"R$ 400"},{"v":50,"d":"R$ 50"}]
[null,"Licenciamento ",{"v":25,"d":"R$ 25"},{"v":25,"d":"R$ 25"},{"v":0,"d":"R$ 0"}]
[null,"Manutenção",{"v":100,"d":"R$ 100"},{"v":50,"d":"R$ 50"},{"v":50,"d":"R$ 50"}]
[null,"Pagamento do veículo",{"v":450,"d":"R$ 450"},{"v":450,"d":"R$ 450"},{"v":0,"d":"R$ 0"}]
[null,"Seguro",{"v":300,"d":"R$ 300"},{"v":300,"d":"R$ 300"},{"v":0,"d":"R$ 0"}]
[null,"Taxas de estacionamento",null,null,{"v":0,"d":"R$ 0"}]
[null,"Transporte público/táxi",{"v":100,"d":"R$ 100"},{"v":150,"d":"R$ 150"},{"v":-50,"d":"-R$ 50"}]
[]
[null,"Grand Total",{"v":7915,"d":"R$ 7,915"},{"v":7860,"d":"R$ 7,860"},{"v":-145,"d":"-R$ 145"}]

{"sheet":"Despesas Mensais","index":2,"n_rows":61,"n_cols":8,"rows_kept":61}
[{"$nulls":7}," "]
[null,"Descrição","Categoria","Custo previsto","Custo Real","Diferença","Visão Geral de Custo Real"]
[null,"Atividades extracurriculares","Filhos",{"v":40,"d":"R$ 40"},{"v":40,"d":"R$ 40"},{"$f":"IF(OR(Tabela_Despesas_Mensais[[#This Row],[Custo previsto]]=\"\",Tabela_Despesas_Mensais[[#This Row],[Custo Real]]=\"\"),\"\",Tabela_Despesas_Mensais[[#This Row],[Custo previsto]]-Tabela_Despesas_Mensais[[#This Row],[Custo Real]])","v":{"v":0,"d":"R$ 0"}},{"$f":"Tabela_Despesas_Mensais[[#This Row],[Custo Real]]","v":40}]
[null,"Médico","Filhos",null,null,{"$f":"IF(OR(Tabela_Despesas_Mensais[[#This Row],[Custo previsto]]=\"\",Tabela_Despesas_Mensais[[#This Row],[Custo Real]]=\"\"),\"\",Tabela_Despesas_Mensais[[#This Row],[Custo previsto]]-Tabela_Despesas_Mensais[[#This Row],[Custo Real]])","v":""},{"$f":"Tabela_Despesas_Mensais[[#This Row],[Custo Real]]","v":0}]
[null,"Material escolar","Filhos",null,null,{"$f":"IF(OR(Tabela_Despesas_Mensais[[#This Row],[Custo previsto]]=\"\",Tabela_Despesas_Mensais[[#This Row],[Custo Real]]=\"\"),\"\",Tabela_Despesas_Mensais[[#This Row],[Custo previsto]]-Tabela_Despesas_Mensais[[#This Row],[Custo Real]])","v":""},{"$f":"Tabela_Despesas_Mensais[[#This Row],[Custo Real]]","v":0}]
[null,"Mensalidade escolar","Filhos",{"v":100,"d":"R$ 100"},{"v":100,"d":"R$ 100"},{"$f":"IF(OR(Tabela_Despesas_Mensais[[#This Row],[Custo previsto]]=\"\",Tabela_Despesas_Mensais[[#This Row],[Custo Real]]=\"\"),\"\",Tabela_Despesas_Mensais[[#This Row],[Custo previsto]]-Tabela_Despesas_Mensais[[#This Row],[Custo Real]])","v":{"v":0,"d":"R$ 0"}},{"$f":"Tabela_Despesas_Mensais[[#This Row],[Custo Real]]","v":100}]
[null,"Shows","Entretenimento",{"v":50,"d":"R$ 50"},{"v":40,"d":"R$ 40"},{"$f":"IF(OR(Tabela_Despesas_Mensais[[#This Row],[Custo previsto]]=\"\",Tabela_Despesas_Mensais[[#This Row],[Custo Real]]=\"\"),\"\",Tabela_Despesas_Mensais[[#This Row],[Custo previsto]]-Tabela_Despesas_Mensais[[#This Row],[Custo Real]])","v":{"v":10,"d":"R$ 10"}},{"$f":"Tabela_Despesas_Mensais[[#This Row],[Custo Real]]","v":40}]
[null,"Teatro ao vivo","Entretenimento",{"v":200,"d":"R$ 200"},{"v":150,"d":"R$ 150"},{"$f":"IF(OR(Tabela_Despesas_Mensais[[#This Row],[Custo previsto]]=\"\",Tabela_Despesas_Mensais[[#This Row],[Custo Real]]=\"\"),\"\",Tabela_Despesas_Mensais[[#This Row],[Custo previsto]]-Tabela_Despesas_Mensais[[#This Row],[Custo Real]])","v":{"v":50,"d":"R$ 50"}},{"$f":"Tabela_Despesas_Mensais[[#This Row],[Custo Real]]","v":150}]
[null,"Filmes","Entretenimento",{"v":50,"d":"R$ 50"},{"v":28,"d":"R$ 28"},{"$f":"IF(OR(Tabela_Despesas_Mensais[[#This Row],[Custo previsto]]=\"\",Tabela_Despesas_Mensais[[#This Row],[Custo Real]]=\"\"),\"\",Tabela_Despesas_Mensais[[#This Row],[Custo previsto]]-Tabela_Despesas_Mensais[[#This Row],[Custo Real]])","v":{"v":22,"d":"R$ 22"}},{"$f":"Tabela_Despesas_Mensais[[#This Row],[Custo Real]]","v":28}]
[null,"Música (CDs, downloads, etc.)","Entretenimento",{"v":50,"d":"R$ 50"},{"v":30,"d":"R$ 30"},{"$f":"IF(OR(Tabela_Despesas_Mensais[[#This Row],[Custo previsto]]=\"\",Tabela_Despesas_Mensais[[#This Row],[Custo Real]]=\"\"),\"\",Tabela_Despesas_Mensais[[#This Row],[Custo previsto]]-Tabela_Despesas_Mensais[[#This Row],[Custo Real]])","v":{"v":20,"d":"R$ 20"}},{"$f":"Tabela_Despesas_Mensais[[#This Row],[Custo Real]]","v":30}]
[null,"Eventos esportivos","Entretenimento",{"v":0,"d":"R$ 0"},{"v":40,"d":"R$ 40"},{"$f":"IF(OR(Tabela_Despesas_Mensais[[#This Row],[Custo previsto]]=\"\",Tabela_Despesas_Mensais[[#This Row],[Custo Real]]=\"\"),\"\",Tabela_Despesas_Mensais[[#This Row],[Custo previsto]]-Tabela_Despesas_Mensais[[#This Row],[Custo Real]])","v":{"v":-40,"d":"-R$ 40"}},{"$f":"Tabela_Despesas_Mensais[[#This Row],[Custo Real]]","v":40}]
[null,"Vídeo/DVD (compra)","Entretenimento",{"v":20,"d":"R$ 20"},{"v":50,"d":"R$ 50"},{"$f":"IF(OR(Tabela_Despesas_Mensais[[#This Row],[Custo previsto]]=\"\",Tabela_Despesas_Mensais[[#This Row],[Custo Real]]=\"\"),\"\",Tabela_Despesas_Mensais[[#This Row],[Custo previsto]]-Tabela_Despesas_Mensais[[#This Row],[Custo Real]])","v":{"v":-30,"d":"-R$ 30"}},{"$f":"Tabela_Despesas_Mensais[[#This Row],[Custo Real]]","v":50}]
[null,"Vídeo/Dvd (locação)","Entretenimento",{"v":30,"d":"R$ 30"},{"v":20,"d":"R$ 20"},{"$f":"IF(OR(Tabela_Despesas_Mensais[[#This Row],[Custo previsto]]=\"\",Tabela_Despesas_Mensais[[#This Row],[Custo Real]]=\"\"),\"\",Tabela_Despesas_Mensais[[#This Row],[Custo previsto]]-Tabela_Despesas_Mensais[[#This Row],[Custo Real]])","v":{"v":10,"d":"R$ 10"}},{"$f":"Tabela_Despesas_Mensais[[#This Row],[Custo Real]]","v":20}]
[null,"Jantar fora","Alimentação",{"v":1000,"d":"R$ 1,000"},{"v":1200,"d":"R$ 1,200"},{"$f":"IF(OR(Tabela_Despesas_Mensais[[#This Row],[Custo previsto]]=\"\",Tabela_Despesas_Mensais[[#This Row],[Custo Real]]=\"\"),\"\",Tabela_Despesas_Mensais[[#This Row],[Custo previsto]]-Tabela_Despesas_Mensais[[#This Row],[Custo Real]])","v":{"v":-200,"d":"-R$ 200"}},{"$f":"Tabela_Despesas_Mensais[[#This Row],[Custo Real]]","v":1200}]
[null,"Supermercado","Alimentação",{"v":100,"d":"R$ 100"},{"v":120,"d":"R$ 120"},{"$f":"IF(OR(Tabela_Despesas_Mensais[[#This Row],[Custo previsto]]=\"\",Tabela_Despesas_Mensais[[#This Row],[Custo Real]]=\"\"),\"\",Tabela_Despesas_Mensais[[#This Row],[Custo previsto]]-Tabela_Despesas_Mensais[[#This Row],[Custo Real]])","v":{"v":-20,"d":"-R$ 20"}},{"$f":"Tabela_Despesas_Mensais[[#This Row],[Custo Real]]","v":120}]
[null,"Instituição beneficente 1","Presentes e instituição de caridade",{"v":75,"d":"R$ 75"},{"v":100,"d":"R$ 100"},{"$f":"IF(OR(Tabela_Despesas_Mensais[[#This Row],[Custo previsto]]=\"\",Tabela_Despesas_Mensais[[#This Row],[Custo Real]]=\"\"),\"\",Tabela_Despesas_Mensais[[#This Row],[Custo previsto]]-Tabela_Despesas_Mensais[[#This Row],[Custo Real]])","v":{"v":-25,"d":"-R$ 25"}},{"$f":"Tabela_Despesas_Mensais[[#This Row],[Custo Real]]","v":100}]
[null,"Instituição beneficente 2","Presentes e instituição de caridade",{"v":25,"d":"R$ 25"},{"v":25,"d":"R$ 25"},{"$f":"IF(OR(Tabela_Despesas_Mensais[[#This Row],[Custo previsto]]=\"\",Tabela_Despesas_Mensais[[#This Row],[Custo Real]]=\"\"),\"\",Tabela_Despesas_Mensais[[#This Row],[Custo previsto]]-Tabela_Despesas_Mensais[[#This Row],[Custo Real]])","v":{"v":0,"d":"R$ 0"}},{"$f":"Tabela_Despesas_Mensais[[#This Row],[Custo Real]]","v":25}]
[null,"Presente 1","Presentes e instituição de caridade",null,null,{"$f":"IF(OR(Tabela_Despesas_Mensais[[#This Row],[Custo previsto]]=\"\",Tabela_Despesas_Mensais[[#This Row],[Custo Real]]=\"\"),\"\",Tabela_Despesas_Mensais[[#This Row],[Custo previsto]]-Tabela_Despesas_Mensais[[#This Row],[Custo Real]])","v":""},{"$f":"Tabela_Despesas_Mensais[[#This Row],[Custo Real]]","v":0}]
[null,"Presente 2","Presentes e instituição de caridade",null,null,{"$f":"IF(OR(Tabela_Despesas_Mensais[[#This Row],[Custo previsto]]=\"\",Tabela_Despesas_Mensais[[#This Row],[Custo Real]]=\"\"),\"\",Tabela_Despesas_Mensais[[#This Row],[Custo previsto]]-Tabela_Despesas_Mensais[[#This Row],[Custo Real]])","v":""},{"$f":"Tabela_Despesas_Mensais[[#This Row],[Custo Real]]","v":0}]
[null,"TV a cabo/satélite","Moradia",{"v":100,"d":"R$ 100"},{"v":100,"d":"R$ 100"},{"$f":"IF(OR(Tabela_Despesas_Mensais[[#This Row],[Custo previsto]]=\"\",Tabela_Despesas_Mensais[[#This Row],[Custo Real]]=\"\"),\"\",Tabela_Despesas_Mensais[[#This Row],[Custo previsto]]-Tabela_Despesas_Mensais[[#This Row],[Custo Real]])","v":{"v":0,"d":"R$ 0"}},{"$f":"Tabela_Despesas_Mensais[[#This Row],[Custo Real]]","v":100}]
[null,"Eletricidade","Moradia",{"v":45,"d":"R$ 45"},{"v":50,"d":"R$ 50"},{"$f":"IF(OR(Tabela_Despesas_Mensais[[#This Row],[Custo previsto]]=\"\",Tabela_Despesas_Mensais[[#This Row],[Custo Real]]=\"\"),\"\",Tabela_Despesas_Mensais[[#This Row],[Custo previsto]]-Tabela_Despesas_Mensais[[#This Row],[Custo Real]])","v":{"v":-5,"d":"-R$ 5"}},{"$f":"Tabela_Despesas_Mensais[[#This Row],[Custo Real]]","v":50}]
[null,"Gás","Moradia",{"v":300,"d":"R$ 300"},{"v":400,"d":"R$ 400"},{"$f":"IF(OR(Tabela_Despesas_Mensais[[#This Row],[Custo previsto]]=\"\",Tabela_Despesas_Mensais[[#This Row],[Custo Real]]=\"\"),\"\",Tabela_Despesas_Mensais[[#This Row],[Custo previsto]]-Tabela_Despesas_Mensais[[#This Row],[Custo Real]])","v":{"v":-100,"d":"-R$ 100"}},{"$f":"Tabela_Despesas_Mensais[[#This Row],[Custo Real]]","v":400}]
[null,"Serviço de limpeza de casa","Moradia",{"v":200,"d":"R$ 200"},null,{"$f":"IF(OR(Tabela_Despesas_Mensais[[#This Row],[Custo previsto]]=\"\",Tabela_Despesas_Mensais[[#This Row],[Custo Real]]=\"\"),\"\",Tabela_Despesas_Mensais[[#This Row],[Custo previsto]]-Tabela_Despesas_Mensais[[#This Row],[Custo Real]])","v":""},{"$f":"Tabela_Despesas_Mensais[[#This Row],[Custo Real]]","v":0}]
[null,"Manutenção","Moradia",{"v":200,"d":"R$ 200"},{"v":150,"d":"R$ 150"},{"$f":"IF(OR(Tabela_Despesas_Mensais[[#This Row],[Custo previsto]]=\"\",Tabela_Despesas_Mensais[[#This Row],[Custo Real]]=\"\"),\"\",Tabela_Despesas_Mensais[[#This Row],[Custo previsto]]-Tabela_Despesas_Mensais[[#This Row],[Custo Real]])","v":{"v":50,"d":"R$ 50"}},{"$f":"Tabela_Despesas_Mensais[[#This Row],[Custo Real]]","v":150}]
[null,"Hipoteca ou aluguel","Moradia",{"v":1700,"d":"R$ 1,700"},{"v":1700,"d":"R$ 1,700"},{"$f":"IF(OR(Tabela_Despesas_Mensais[[#This Row],[Custo previsto]]=\"\",Tabela_Despesas_Mensais[[#This Row],[Custo Real]]=\"\"),\"\",Tabela_Despesas_Mensais[[#This Row],[Custo previsto]]-Tabela_Despesas_Mensais[[#This Row],[Custo Real]])","v":{"v":0,"d":"R$ 0"}},{"$f":"Tabela_Despesas_Mensais[[#This Row],[Custo Real]]","v":1700}]
[null,"Gás de cozinha","Moradia",null,null,{"$f":"IF(OR(Tabela_Despesas_Mensais[[#This Row],[Custo previsto]]=\"\",Tabela_Despesas_Mensais[[#This Row],[Custo Real]]=\"\"),\"\",Tabela_Despesas_Mensais[[#This Row],[Custo previsto]]-Tabela_Despesas_Mensais[[#This Row],[Custo Real]])","v":""},{"$f":"Tabela_Despesas_Mensais[[#This Row],[Custo Real]]","v":0}]
[null,"Serviço de Internet/online","Moradia",{"v":100,"d":"R$ 100"},{"v":100,"d":"R$ 100"},{"$f":"IF(OR(Tabela_Despesas_Mensais[[#This Row],[Custo previsto]]=\"\",Tabela_Despesas_Mensais[[#This Row],[Custo Real]]=\"\"),\"\",Tabela_Despesas_Mensais[[#This Row],[Custo previsto]]-Tabela_Despesas_Mensais[[#This Row],[Custo Real]])","v":{"v":0,"d":"R$ 0"}},{"$f":"Tabela_Despesas_Mensais[[#This Row],[Custo Real]]","v":100}]
[null,"Telefone (celular)","Moradia",{"v":60,"d":"R$ 60"},{"v":60,"d":"R$ 60"},{"$f":"IF(OR(Tabela_Despesas_Mensais[[#This Row],[Custo previsto]]=\"\",Tabela_Despesas_Mensais[[#This Row],[Custo Real]]=\"\"),\"\",Tabela_Despesas_Mensais[[#This Row],[Custo previsto]]-Tabela_Despesas_Mensais[[#This Row],[Custo Real]])","v":{"v":0,"d":"R$ 0"}},{"$f":"Tabela_Despesas_Mensais[[#This Row],[Custo Real]]","v":60}]
[null,"Telefone (residencial)","Moradia",{"v":35,"d":"R$ 35"},{"v":39,"d":"R$ 39"},{"$f":"IF(OR(Tabela_Despesas_Mensais[[#This Row],[Custo previsto]]=\"\",Tabela_Despesas_Mensais[[#This Row],[Custo Real]]=\"\"),\"\",Tabela_Despesas_Mensais[[#This Row],[Custo previsto]]-Tabela_Despesas_Mensais[[#This Row],[Custo Real]])","v":{"v":-4,"d":"-R$ 4"}},{"$f":"Tabela_Despesas_Mensais[[#This Row],[Custo Real]]","v":39}]
[null,"Suprimentos","Moradia",{"v":40,"d":"R$ 40"},{"v":55,"d":"R$ 55"},{"$f":"IF(OR(Tabela_Despesas_Mensais[[#This Row],[Custo previsto]]=\"\",Tabela_Despesas_Mensais[[#This Row],[Custo Real]]=\"\"),\"\",Tabela_Despesas_Mensais[[#This Row],[Custo previsto]]-Tabela_Despesas_Mensais[[#This Row],[Custo Real]])","v":{"v":-15,"d":"-R$ 15"}},{"$f":"Tabela_Despesas_Mensais[[#This Row],[Custo Real]]","v":55}]
[null,"Lixeira e remoção desperdício","Moradia",{"v":25,"d":"R$ 25"},{"v":22,"d":"R$ 22"},{"$f":"IF(OR(Tabela_Despesas_Mensais[[#This Row],[Custo previsto]]=\"\",Tabela_Despesas_Mensais[[#This Row],[Custo Real]]=\"\"),\"\",Tabela_Despesas_Mensais[[#This Row],[Custo previsto]]-Tabela_Despesas_Mensais[[#This Row],[Custo Real]])","v":{"v":3,"d":"R$ 3"}},{"$f":"Tabela_Despesas_Mensais[[#This Row],[Custo Real]]","v":22}]
[null,"Água e esgoto","Moradia",{"v":25,"d":"R$ 25"},{"v":26,"d":"R$ 26"},{"$f":"IF(OR(Tabela_Despesas_Mensais[[#This Row],[Custo previsto]]=\"\",Tabela_Despesas_Mensais[[#This Row],[Custo Real]]=\"\"),\"\",Tabela_Despesas_Mensais[[#This Row],[Custo previsto]]-Tabela_Despesas_Mensais[[#This Row],[Custo Real]])","v":{"v":-1,"d":"-R$ 1"}},{"$f":"Tabela_Despesas_Mensais[[#This Row],[Custo Real]]","v":26}]
[null,"Saúde","Seguro",{"v":400,"d":"R$ 400"},{"v":400,"d":"R$ 400"},{"$f":"IF(OR(Tabela_Despesas_Mensais[[#This Row],[Custo previsto]]=\"\",Tabela_Despesas_Mensais[[#This Row],[Custo Real]]=\"\"),\"\",Tabela_Despesas_Mensais[[#This Row],[Custo previsto]]-Tabela_Despesas_Mensais[[#This Row],[Custo Real]])","v":{"v":0,"d":"R$ 0"}},{"$f":"Tabela_Despesas_Mensais[[#This Row],[Custo Real]]","v":400}]
[null,"Residencial","Seguro",{"v":400,"d":"R$ 400"},{"v":400,"d":"R$ 400"},{"$f":"IF(OR(Tabela_Despesas_Mensais[[#This Row],[Custo previsto]]=\"\",Tabela_Despesas_Mensais[[#This Row],[Custo Real]]=\"\"),\"\",Tabela_Despesas_Mensais[[#This Row],[Custo previsto]]-Tabela_Despesas_Mensais[[#This Row],[Custo Real]])","v":{"v":0,"d":"R$ 0"}},{"$f":"Tabela_Despesas_Mensais[[#This Row],[Custo Real]]","v":400}]
[null,"Vida","Seguro",{"v":100,"d":"R$ 100"},{"v":100,"d":"R$ 100"},{"$f":"IF(OR(Tabela_Despesas_Mensais[[#This Row],[Custo previsto]]=\"\",Tabela_Despesas_Mensais[[#This Row],[Custo Real]]=\"\"),\"\",Tabela_Despesas_Mensais[[#This Row],[Custo previsto]]-Tabela_Despesas_Mensais[[#This Row],[Custo Real]])","v":{"v":0,"d":"R$ 0"}},{"$f":"Tabela_Despesas_Mensais[[#This Row],[Custo Real]]","v":100}]
[null,"Cartão de crédito 1","Empréstimos",{"v":200,"d":"R$ 200"},{"v":200,"d":"R$ 200"},{"$f":"IF(OR(Tabela_Despesas_Mensais[[#This Row],[Custo previsto]]=\"\",Tabela_Despesas_Mensais[[#This Row],[Custo Real]]=\"\"),\"\",Tabela_Despesas_Mensais[[#This Row],[Custo previsto]]-Tabela_Despesas_Mensais[[#This Row],[Custo Real]])","v":{"v":0,"d":"R$ 0"}},{"$f":"Tabela_Despesas_Mensais[[#This Row],[Custo Real]]","v":200}]
[null,"Cartão de crédito 2","Empréstimos",null,null,{"$f":"IF(OR(Tabela_Despesas_Mensais[[#This Row],[Custo previsto]]=\"\",Tabela_Despesas_Mensais[[#This Row],[Custo Real]]=\"\"),\"\",Tabela_Despesas_Mensais[[#This Row],[Custo previsto]]-Tabela_Despesas_Mensais[[#This Row],[Custo Real]])","v":""},{"$f":"Tabela_Despesas_Mensais[[#This Row],[Custo Real]]","v":0}]
[null,"Cartão de crédito 3","Empréstimos",null,null,{"$f":"IF(OR(Tabela_Despesas_Mensais[[#This Row],[Custo previsto]]=\"\",Tabela_Despesas_Mensais[[#This Row],[Custo Real]]=\"\"),\"\",Tabela_Despesas_Mensais[[#This Row],[Custo previsto]]-Tabela_Despesas_Mensais[[#This Row],[Custo Real]])","v":""},{"$f":"Tabela_Despesas_Mensais[[#This Row],[Custo Real]]","v":0}]
[null,"Pessoal","Empréstimos",null,null,{"$f":"IF(OR(Tabela_Despesas_Mensais[[#This Row],[Custo previsto]]=\"\",Tabela_Despesas_Mensais[[#This Row],[Custo Real]]=\"\"),\"\",Tabela_Despesas_Mensais[[#This Row],[Custo previsto]]-Tabela_Despesas_Mensais[[#This Row],[Custo Real]])","v":""},{"$f":"Tabela_Despesas_Mensais[[#This Row],[Custo Real]]","v":0}]
[null,"Estudante","Empréstimos",null,null,{"$f":"IF(OR(Tabela_Despesas_Mensais[[#This Row],[Custo previsto]]=\"\",Tabela_Despesas_Mensais[[#This Row],[Custo Real]]=\"\"),\"\",Tabela_Despesas_Mensais[[#This Row],[Custo previsto]]-Tabela_Despesas_Mensais[[#This Row],[Custo Real]])","v":""},{"$f":"Tabela_Despesas_Mensais[[#This Row],[Custo Real]]","v":0}]
[null,"Vestuário","Cuidados pessoais",{"v":150,"d":"R$ 150"},{"v":140,"d":"R$ 140"},{"$f":"IF(OR(Tabela_Despesas_Mensais[[#This Row],[Custo previsto]]=\"\",Tabela_Despesas_Mensais[[#This Row],[Custo Real]]=\"\"),\"\",Tabela_Despesas_Mensais[[#This Row],[Custo previsto]]-Tabela_Despesas_Mensais[[#This Row],[Custo Real]])","v":{"v":10,"d":"R$ 10"}},{"$f":"Tabela_Despesas_Mensais[[#This Row],[Custo Real]]","v":140}]
[null,"Lavagem a seco","Cuidados pessoais",null,null,{"$f":"IF(OR(Tabela_Despesas_Mensais[[#This Row],[Custo previsto]]=\"\",Tabela_Despesas_Mensais[[#This Row],[Custo Real]]=\"\"),\"\",Tabela_Despesas_Mensais[[#This Row],[Custo previsto]]-Tabela_Despesas_Mensais[[#This Row],[Custo Real]])","v":""},{"$f":"Tabela_Despesas_Mensais[[#This Row],[Custo Real]]","v":0}]
[null,"Cabelo/unhas","Cuidados pessoais",null,null,{"$f":"IF(OR(Tabela_Despesas_Mensais[[#This Row],[Custo previsto]]=\"\",Tabela_Despesas_Mensais[[#This Row],[Custo Real]]=\"\"),\"\",Tabela_Despesas_Mensais[[#This Row],[Custo previsto]]-Tabela_Despesas_Mensais[[#This Row],[Custo Real]])","v":""},{"$f":"Tabela_Despesas_Mensais[[#This Row],[Custo Real]]","v":0}]
[null,"Academia","Cuidados pessoais",null,null,{"$f":"IF(OR(Tabela_Despesas_Mensais[[#This Row],[Custo previsto]]=\"\",Tabela_Despesas_Mensais[[#This Row],[Custo Real]]=\"\"),\"\",Tabela_Despesas_Mensais[[#This Row],[Custo previsto]]-Tabela_Despesas_Mensais[[#This Row],[Custo Real]])","v":""},{"$f":"Tabela_Despesas_Mensais[[#This Row],[Custo Real]]","v":0}]
[null,"Médico","Cuidados pessoais",null,null,{"$f":"IF(OR(Tabela_Despesas_Mensais[[#This Row],[Custo previsto]]=\"\",Tabela_Despesas_Mensais[[#This Row],[Custo Real]]=\"\"),\"\",Tabela_Despesas_Mensais[[#This Row],[Custo previsto]]-Tabela_Despesas_Mensais[[#This Row],[Custo Real]])","v":""},{"$f":"Tabela_Despesas_Mensais[[#This Row],[Custo Real]]","v":0}]
[null,"Alimentação","Animais de estimação",{"v":150,"d":"R$ 150"},{"v":75,"d":"R$ 75"},{"$f":"IF(OR(Tabela_Despesas_Mensais[[#This Row],[Custo previsto]]=\"\",Tabela_Despesas_Mensais[[#This Row],[Custo Real]]=\"\"),\"\",Tabela_Despesas_Mensais[[#This Row],[Custo previsto]]-Tabela_Despesas_Mensais[[#This Row],[Custo Real]])","v":{"v":75,"d":"R$ 75"}},{"$f":"Tabela_Despesas_Mensais[[#This Row],[Custo Real]]","v":75}]
[null,"Dia da Beleza","Animais de estimação",{"v":20,"d":"R$ 20"},{"v":25,"d":"R$ 25"},{"$f":"IF(OR(Tabela_Despesas_Mensais[[#This Row],[Custo previsto]]=\"\",Tabela_Despesas_Mensais[[#This Row],[Custo Real]]=\"\"),\"\",Tabela_Despesas_Mensais[[#This Row],[Custo previsto]]-Tabela_Despesas_Mensais[[#This Row],[Custo Real]])","v":{"v":-5,"d":"-R$ 5"}},{"$f":"Tabela_Despesas_Mensais[[#This Row],[Custo Real]]","v":25}]
[null,"Médico","Animais de estimação",null,null,{"$f":"IF(OR(Tabela_Despesas_Mensais[[#This Row],[Custo previsto]]=\"\",Tabela_Despesas_Mensais[[#This Row],[Custo Real]]=\"\"),\"\",Tabela_Despesas_Mensais[[#This Row],[Custo previsto]]-Tabela_Despesas_Mensais[[#This Row],[Custo Real]])","v":""},{"$f":"Tabela_Despesas_Mensais[[#This Row],[Custo Real]]","v":0}]
[null,"Brinquedos","Animais de estimação",null,null,{"$f":"IF(OR(Tabela_Despesas_Mensais[[#This Row],[Custo previsto]]=\"\",Tabela_Despesas_Mensais[[#This Row],[Custo Real]]=\"\"),\"\",Tabela_Despesas_Mensais[[#This Row],[Custo previsto]]-Tabela_Despesas_Mensais[[#This Row],[Custo Real]])","v":""},{"$f":"Tabela_Despesas_Mensais[[#This Row],[Custo Real]]","v":0}]
[null,"Conta de investimentos","Poupança",{"v":200,"d":"R$ 200"},{"v":200,"d":"R$ 200"},{"$f":"IF(OR(Tabela_Despesas_Mensais[[#This Row],[Custo previsto]]=\"\",Tabela_Despesas_Mensais[[#This Row],[Custo Real]]=\"\"),\"\",Tabela_Despesas_Mensais[[#This Row],[Custo previsto]]-Tabela_Despesas_Mensais[[#This Row],[Custo Real]])","v":{"v":0,"d":"R$ 0"}},{"$f":"Tabela_Despesas_Mensais[[#This Row],[Custo Real]]","v":200}]
[null,"Conta de aposentadoria","Poupança",null,null,{"$f":"IF(OR(Tabela_Despesas_Mensais[[#This Row],[Custo previsto]]=\"\",Tabela_Despesas_Mensais[[#This Row],[Custo Real]]=\"\"),\"\",Tabela_Despesas_Mensais[[#This Row],[Custo previsto]]-Tabela_Despesas_Mensais[[#This Row],[Custo Real]])","v":""},{"$f":"Tabela_Despesas_Mensais[[#This Row],[Custo Real]]","v":0}]
[null,"Federal","Impostos",{"v":300,"d":"R$ 300"},{"v":300,"d":"R$ 300"},{"$f":"IF(OR(Tabela_Despesas_Mensais[[#This Row],[Custo previsto]]=\"\",Tabela_Despesas_Mensais[[#This Row],[Custo Real]]=\"\"),\"\",Tabela_Despesas_Mensais[[#This Row],[Custo previsto]]-Tabela_Despesas_Mensais[[#This Row],[Custo Real]])","v":{"v":0,"d":"R$ 0"}},{"$f":"Tabela_Despesas_Mensais[[#This Row],[Custo Real]]","v":300}]
[null,"Local","Impostos",null,null,{"$f":"IF(OR(Tabela_Despesas_Mensais[[#This Row],[Custo previsto]]=\"\",Tabela_Despesas_Mensais[[#This Row],[Custo Real]]=\"\"),\"\",Tabela_Despesas_Mensais[[#This Row],[Custo previsto]]-Tabela_Despesas_Mensais[[#This Row],[Custo Real]])","v":""},{"$f":"Tabela_Despesas_Mensais[[#This Row],[Custo Real]]","v":0}]
[null,"Estadual","Impostos",null,null,{"$f":"IF(OR(Tabela_Despesas_Mensais[[#This Row],[Custo previsto]]=\"\",Tabela_Despesas_Mensais[[#This Row],[Custo Real]]=\"\"),\"\",Tabela_Despesas_Mensais[[#This Row],[Custo previsto]]-Tabela_Despesas_Mensais[[#This Row],[Custo Real]])","v":""},{"$f":"Tabela_Despesas_Mensais[[#This Row],[Custo Real]]","v":0}]
[null,"Transporte público/táxi","Transporte",{"v":100,"d":"R$ 100"},{"v":150,"d":"R$ 150"},{"$f":"IF(OR(Tabela_Despesas_Mensais[[#This Row],[Custo previsto]]=\"\",Tabela_Despesas_Mensais[[#This Row],[Custo Real]]=\"\"),\"\",Tabela_Despesas_Mensais[[#This Row],[Custo previsto]]-Tabela_Despesas_Mensais[[#This Row],[Custo Real]])","v":{"v":-50,"d":"-R$ 50"}},{"$f":"Tabela_Despesas_Mensais[[#This Row],[Custo Real]]","v":150}]
[null,"Combustível","Transporte",{"v":450,"d":"R$ 450"},{"v":400,"d":"R$ 400"},{"$f":"IF(OR(Tabela_Despesas_Mensais[[#This Row],[Custo previsto]]=\"\",Tabela_Despesas_Mensais[[#This Row],[Custo Real]]=\"\"),\"\",Tabela_Despesas_Mensais[[#This Row],[Custo previsto]]-Tabela_Despesas_Mensais[[#This Row],[Custo Real]])","v":{"v":50,"d":"R$ 50"}},{"$f":"Tabela_Despesas_Mensais[[#This Row],[Custo Real]]","v":400}]
[null,"Seguro","Transporte",{"v":300,"d":"R$ 300"},{"v":300,"d":"R$ 300"},{"$f":"IF(OR(Tabela_Despesas_Mensais[[#This Row],[Custo previsto]]=\"\",Tabela_Despesas_Mensais[[#This Row],[Custo Real]]=\"\"),\"\",Tabela_Despesas_Mensais[[#This Row],[Custo previsto]]-Tabela_Despesas_Mensais[[#This Row],[Custo Real]])","v":{"v":0,"d":"R$ 0"}},{"$f":"Tabela_Despesas_Mensais[[#This Row],[Custo Real]]","v":300}]
[null,"Licenciamento ","Transporte",{"v":25,"d":"R$ 25"},{"v":25,"d":"R$ 25"},{"$f":"IF(OR(Tabela_Despesas_Mensais[[#This Row],[Custo previsto]]=\"\",Tabela_Despesas_Mensais[[#This Row],[Custo Real]]=\"\"),\"\",Tabela_Despesas_Mensais[[#This Row],[Custo previsto]]-Tabela_Despesas_Mensais[[#This Row],[Custo Real]])","v":{"v":0,"d":"R$ 0"}},{"$f":"Tabela_Despesas_Mensais[[#This Row],[Custo Real]]","v":25}]
[null,"Manutenção","Transporte",{"v":100,"d":"R$ 100"},{"v":50,"d":"R$ 50"},{"$f":"IF(OR(Tabela_Despesas_Mensais[[#This Row],[Custo previsto]]=\"\",Tabela_Despesas_Mensais[[#This Row],[Custo Real]]=\"\"),\"\",Tabela_Despesas_Mensais[[#This Row],[Custo previsto]]-Tabela_Despesas_Mensais[[#This Row],[Custo Real]])","v":{"v":50,"d":"R$ 50"}},{"$f":"Tabela_Despesas_Mensais[[#This Row],[Custo Real]]","v":50}]
[null,"Taxas de estacionamento","Transporte",null,null,{"$f":"IF(OR(Tabela_Despesas_Mensais[[#This Row],[Custo previsto]]=\"\",Tabela_Despesas_Mensais[[#This Row],[Custo Real]]=\"\"),\"\",Tabela_Despesas_Mensais[[#This Row],[Custo previsto]]-Tabela_Despesas_Mensais[[#This Row],[Custo Real]])","v":""},{"$f":"Tabela_Despesas_Mensais[[#This Row],[Custo Real]]","v":0}]
[null,"Pagamento do veículo","Transporte",{"v":450,"d":"R$ 450"},{"v":450,"d":"R$ 450"},{"$f":"IF(OR(Tabela_Despesas_Mensais[[#This Row],[Custo previsto]]=\"\",Tabela_Despesas_Mensais[[#This Row],[Custo Real]]=\"\"),\"\",Tabela_Despesas_Mensais[[#This Row],[Custo previsto]]-Tabela_Despesas_Mensais[[#This Row],[Custo Real]])","v":{"v":0,"d":"R$ 0"}},{"$f":"Tabela_Despesas_Mensais[[#This Row],[Custo Real]]","v":450}]

{"sheet":"Dados adicionais","index":3,"n_rows":17,"n_cols":6,"rows_kept":17}
[{"$nulls":5}," "]
[null,"Tabela Dinâmica no Gráfico de Orçamento",null,null,"Lista de Categorias"]
[]
[null,"Categorias","Custo",null,"Para adicionar uma categoria, digite abaixo"]
[null,"Animais de estimação",{"v":100,"d":"R$ 100"},null,"Filhos"]
[null,"Presentes e instituição de caridade",{"v":125,"d":"R$ 125"},null,"Entretenimento"]
[null,"Filhos",{"v":140,"d":"R$ 140"},null,"Alimentação"]
[null,"Cuidados pessoais",{"v":140,"d":"R$ 140"},null,"Presentes e instituição de caridade"]
[null,"Empréstimos",{"v":200,"d":"R$ 200"},null,"Moradia"]
[null,"Poupança",{"v":200,"d":"R$ 200"},null,"Seguro"]
[null,"Impostos",{"v":300,"d":"R$ 300"},null,"Empréstimos"]
[null,"Entretenimento",{"v":358,"d":"R$ 358"},null,"Cuidados pessoais"]
[null,"Seguro",{"v":900,"d":"R$ 900"},null,"Animais de estimação"]
[null,"Alimentação",{"v":1320,"d":"R$ 1,320"},null,"Poupança"]
[null,"Transporte",{"v":1375,"d":"R$ 1,375"},null,"Impostos"]
[null,"Moradia",{"v":2702,"d":"R$ 2,702"},null,"Transporte"]
[null,"Grand Total",{"v":7860,"d":"R$ 7,860"}]